Cogmind - Beta 15 @@@ ROGUE MODE // 2025.07.04 @ 13:18:09 Player: winnking222 Result: Destroyed by P-80 Master with Gamma Rifle Performance ------------- Evolutions (9) 4500 Regions Visited (22) 4400 Robots Destroyed (110) 550 Value Destroyed (3306) 3306 Prototype IDs (24) 480 Alien Tech Used (2) 400 Bonus (2177) 2177 TOTAL SCORE: 15813 Bonus ------- High Alert Combat Kills 407 Follower Combat Kills 389 Entered Garrisons 200 Entered DSFs 500 Met Data Miner 300 Acquired ECA 300 Scanned by Researcher 500 Friendly Fire -419 Cogmind --------- Core Integrity 0/1600 Matter 170/300 Energy 92/100 System Corruption 4% Temperature Cool (2) Movement Flying (25) Location -1/Access Parts ------- > --- POWER (2) -------- (None) > --- PROPULSION (5) --- Advanced Surge Thruster > --- UTILITY (14) ----- (None) > --- WEAPON (4) ------- (None) > --- INVENTORY (5) ---- Improved Plasma Cutter Kinetic Spear Peak State ------------ > --- POWER ------------ (None) > --- PROPULSION ------- Impulse Thruster Field Propulsion Array Q-thruster > --- UTILITY ---------- Advanced Cryofiber Web Advanced Trap Scanner Advanced Visual Processing Unit Enhanced Optical Array 0b10 Decoder Chip [Generic] Hacking Suite Makeshift Hacking Suite Advanced Hacking Suite System Shield Improved System Shield Improved Corruption Screen Drone Bay > --- WEAPON ----------- Null Cannon Kinetic Spear > --- INVENTORY -------- Improved Light Armor Plating Smartbomb Launcher Improved Plasma Cutter Phasing Sabre [Rating: 110] Favorites ----------- Power Reinforced Ion Engine Engine Reinforced Ion Engine Reactor Antimatter Reactor Propulsion Armored Treads Treads Armored Treads Leg Aluminum Leg Wheel Compact Wheel Flight Unit Nuclear Pulse Thruster Utility High-capacity Storage Unit Device Improved Cooling System Storage High-capacity Storage Unit Processor Improved Targeting Computer Hackware Hacking Suite Protection Light Armor Plating Weapon Gauss Rifle Energy Gun Improved Medium Laser Energy Cannon Null Cannon Ballistic Gun Gauss Rifle Launcher Grenade Launcher Special Weapon Improved Plasma Cutter Impact Weapon Makeshift Hammer Slashing Weapon Phasing Sabre Piercing Weapon Kinetic Spear Special Melee Weapon Advanced Datajack Build | -11 -10 -9 -8 -8 -8 -8 -7 -7 -6 -6 -6 -6 -5 -5 -5 -5 -4 -3 -3 -2 -2 -1 ------- Run | Yrd Mat Mat Mat Gar Mat Sto Fac DSF Fac Low Low Dat Pro Fac Upp Upp Fac Res Tes Res Qua Acc Slots Evolved 18 | . . 2 2 . . . 2 . 2 . . . . 2 . . 2 2 . 2 . 2 Power 1 | . . . . . . . . . 1 . . . . . . . . . . . . . Propulsion 3 | . . 1 1 . . . . . . . . . . . . . 1 . . . . . Utility 12 | . . 1 1 . . . 2 . 1 . . . . 2 . . 1 2 . 2 . . Weapon 2 | . . . . . . . . . . . . . . . . . . . . . . 2 Parts Attached 99 | 7 4 16 2 15 4 2 8 . 3 9 2 . 3 1 10 . 3 6 2 . . 2 Power 5 | 1 1 1 . 1 . . . . . . . . 1 . . . . . . . . . Engine 4 | 1 1 1 . 1 . . . . . . . . . . . . . . . . . . Core . | . . . . . . . . . . . . . . . . . . . . . . . Reactor 1 | . . . . . . . . . . . . . 1 . . . . . . . . . Propulsion 24 | 2 . 9 1 1 1 . 1 . 1 2 . . 2 . . . 1 2 . . . 1 Treads 7 | 2 . 4 1 . . . . . . . . . . . . . . . . . . . Leg 5 | . . 2 . 1 1 . . . . . . . 1 . . . . . . . . . Wheel 3 | . . 3 . . . . . . . . . . . . . . . . . . . . Hover . | . . . . . . . . . . . . . . . . . . . . . . . Flight 9 | . . . . . . . 1 . 1 2 . . 1 . . . 1 2 . . . 1 Utility 43 | 2 1 3 1 7 2 2 6 . 2 5 . . . . 7 . 1 3 1 . . . Device 13 | 1 . 1 . 2 . 2 . . . 2 . . . . 2 . 1 2 . . . . Storage 2 | 1 1 . . . . . . . . . . . . . . . . . . . . . Processor 12 | . . 2 . 2 1 . 3 . 1 1 . . . . 1 . . . 1 . . . Hackware 9 | . . . 1 . . . 1 . 1 1 . . . . 4 . . 1 . . . . Protection 7 | . . . . 3 1 . 2 . . 1 . . . . . . . . . . . . Artifact . | . . . . . . . . . . . . . . . . . . . . . . . Weapon 27 | 2 2 3 . 6 1 . 1 . . 2 2 . . 1 3 . 1 1 1 . . 1 Energy Gun 4 | . . 2 . . 1 . . . . . 1 . . . . . . . . . . . Energy Cannon 1 | . . . . . . . . . . . . . . . . . . . 1 . . . Ballistic Gun 9 | 2 2 1 . 3 . . . . . . 1 . . . . . . . . . . . Ballistic Cannon . | . . . . . . . . . . . . . . . . . . . . . . . Launcher 5 | . . . . 2 . . . . . 1 . . . . 1 . . . . . . 1 Special Weapon 1 | . . . . . . . . . . . . . . 1 . . . . . . . . Impact Weapon 3 | . . . . 1 . . 1 . . 1 . . . . . . . . . . . . Slashing Weapon 2 | . . . . . . . . . . . . . . . 2 . . . . . . . Piercing Weapon 1 | . . . . . . . . . . . . . . . . . . 1 . . . . Special Melee Weapon 1 | . . . . . . . . . . . . . . . . . 1 . . . . . Unidentified Prototypes 6 | . . . . . 1 . . . . . . . 1 . . . . 1 1 . 1 1 Parts Lost 50 | . 2 5 . 5 8 . . . 5 . 3 . 1 3 4 . 1 . 1 1 3 8 Power 2 | . 1 . . 1 . . . . . . . . . . . . . . . . . . Propulsion 16 | . 1 3 . . 4 . . . 1 . 2 . 1 1 . . . . . . 2 1 Utility 23 | . . 1 . 4 1 . . . 4 . 1 . . 1 1 . 1 . 1 1 1 6 Weapon 9 | . . 1 . . 3 . . . . . . . . 1 3 . . . . . . 1 Highest Loss Streak 7 | . 1 2 . 2 7 . . . 5 . 2 . 1 3 3 . 1 . 1 1 3 5 To Critical Strikes 1 | . . . . . . . . . . . . . . 1 . . . . . . . . Average Backups 12 | 2 9 17 17 19 18 5 4 4 4 4 4 5 4 5 3 4 4 4 4 4 4 3 Power . | . . . 1 1 . . . . . . . . . . . . . . . . . . Propulsion 2 | 1 2 1 4 4 3 1 . . . . . . . . . . . . . . . . Utility 2 | . 3 5 5 4 4 . . 1 . . . 2 2 2 2 2 2 1 1 1 1 . Weapon 6 | . 4 10 7 10 10 4 3 3 3 3 3 3 2 2 1 2 2 2 2 2 1 1 Tool/Special . | . . . . . . . . . . . . . . . . . . . . . . . Unused Backups 28 | . . 6 . 2 17 . 2 . . . . . . . . . . . . . . 1 Power 2 | . . 1 . . 1 . . . . . . . . . . . . . . . . . Propulsion 4 | . . 1 . . 2 . 1 . . . . . . . . . . . . . . . Utility 5 | . . 1 . . 4 . . . . . . . . . . . . . . . . . Weapon 16 | . . 3 . 2 10 . 1 . . . . . . . . . . . . . . . Tool/Special 1 | . . . . . . . . . . . . . . . . . . . . . . 1 Average Slot Usage (%) 78 | . 88 97 98 97 88 27 41 53 44 51 55 40 36 33 41 47 45 61 77 67 61 26 Engine 5 | . 6 11 9 8 8 . . . . . . . . . . . . . . . . . Treads 17 | . 25 11 36 35 26 . . . . . . . . . . . . . . . . . Leg 2 | . . 13 . . 3 . . . . . . . . . . . . . . . . . Flight 2 | . . . . . . . 2 7 8 10 11 6 4 3 . . . 6 14 13 11 1 Device 8 | . 14 10 9 9 9 9 7 7 3 5 2 . . . 3 . . 9 13 8 8 1 Storage 6 | . 14 11 9 9 8 . . . . . . . . . . . . . . . . . Processor 11 | . . 10 9 9 9 18 22 23 20 20 20 20 20 17 14 17 15 14 16 17 15 11 Hackware 4 | . . . 7 . . . 5 7 5 1 6 6 6 5 21 29 26 22 23 19 17 7 Protection 3 | . . . . 5 7 . 2 7 4 10 10 . . . . . . . . . . 1 Energy Gun 3 | . . 16 9 1 . . . . . . . . . . . . . . . . . . Ballistic Gun 9 | . 28 5 9 14 16 . . . . . . 6 2 . . . . . . . . . Peak Build Rating 110 | 7 10 26 30 38 35 10 24 21 37 41 42 25 31 30 43 36 64 98 110 100 97 66 Average Rating 29 | 6 7 17 29 32 30 8 15 20 23 31 35 25 22 23 29 36 43 79 100 98 87 34 On Entrance 34 | . 7 10 25 30 34 10 7 21 21 19 37 25 25 24 13 36 36 61 98 100 97 66 Naked Turns 7 | . . . . . . . . . . . . . . . . . . . . . . 7 Heaviest Build 67 | 13 52 52 52 63 67 2 5 5 8 12 16 4 4 3 6 . 2 13 13 7 7 7 Greatest Support 80 | 40 40 60 80 80 80 3 6 6 12 14 14 6 6 4 3 3 15 30 15 15 15 8 Greatest Overweight (x) 3 | . 2 3 . 1 1 . . . . . 2 . 1 . 1 . . . . . 2 1 Average Overweight (x) . | . . 1 . . . . . . . . . . . . . . . . . . . . Largest Inventory Capacity 20 | 8 20 20 20 20 20 5 5 5 5 5 5 5 5 5 5 5 5 5 5 5 5 5 Average Capacity 14 | 7 17 20 20 20 18 5 5 5 5 5 5 5 5 5 5 5 5 5 5 5 5 5 Most Carried 20 | 5 15 20 18 20 20 5 5 5 5 5 5 5 5 5 5 4 5 5 5 5 5 5 Average Carried 12 | 2 9 17 17 19 18 5 4 4 4 4 4 5 4 4 3 4 4 4 4 5 4 4 Final Capacity 20 | 8 20 20 20 20 5 5 5 5 5 5 5 5 5 5 5 5 5 5 5 5 5 5 Final Carried 20 | 4 14 19 17 20 5 5 4 4 4 5 5 5 5 5 4 4 4 5 5 5 5 2 Class Distribution -------------------- 54% | Mutant 28% | Scavenger-Mutant 15% | Hacker-Mutant Dominant Class ---------------- Mutant | -10/Materials Mutant | -9/Materials Mutant | -8/Materials Scavenger-Mutant | -8/Garrison Scavenger-Mutant | -8/Materials Mutant | -8/Storage Mutant | -7/Factory Mutant | -7/DSF Mutant | -6/Factory Mutant | -6/Lower Caves Mutant | -6/Lower Caves Mutant | -6/Data Miner Mutant | -5/Proximity Caves Mutant | -5/Factory Hacker-Mutant | -5/Upper Caves Hacker-Mutant | -5/Upper Caves Hacker-Mutant | -4/Factory Hacker-Mutant | -3/Research Hacker-Mutant | -3/Testing Hacker-Mutant | -2/Research Hacker-Mutant | -2/Quarantine Hacker-Mutant | -1/Access Resources | -11 -10 -9 -8 -8 -8 -8 -7 -7 -6 -6 -6 -6 -5 -5 -5 -5 -4 -3 -3 -2 -2 -1 ----------- Run | Yrd Mat Mat Mat Gar Mat Sto Fac DSF Fac Low Low Dat Pro Fac Upp Upp Fac Res Tes Res Qua Acc Matter Collected 2778 | 332 142 237 . 953 390 . 104 . . 235 147 . 34 3 164 . . . . . 19 18 Remotely . | . . . . . . . . . . . . . . . . . . . . . . . Salvage Created 3812 | 237 347 1166 . 809 843 . . . . 105 117 . 47 . 32 . . . 44 . . 65 Parts 226 | 25 22 64 . 43 53 . . . . 2 1 . 2 . 2 . . . 6 . . 6 Haulers Intercepted 6 | . . 5 . . 1 . . . . . . . . . . . . . . . . . Recyclers Shooed 5 | . 1 1 . . 3 . . . . . . . . . . . . . . . . . Parts Field Recycled . | . . . . . . . . . . . . . . . . . . . . . . . Retrieved Matter . | . . . . . . . . . . . . . . . . . . . . . . . Parts Self-Destructed 12 | . . . . . . . . . . 1 4 . 6 . 1 . . . . . . . Prevented 5 | . . . . . . . . . . 1 3 . . . 1 . . . . . . . Kills | -11 -10 -9 -8 -8 -8 -8 -7 -7 -6 -6 -6 -6 -5 -5 -5 -5 -4 -3 -3 -2 -2 -1 ------- Run | Yrd Mat Mat Mat Gar Mat Sto Fac DSF Fac Low Low Dat Pro Fac Upp Upp Fac Res Tes Res Qua Acc Combat Hostiles Destroyed 76 | . 13 18 . 17 16 . . . . 3 3 . 2 . 1 . . . . . . 3 Melee 1 | . . . . . . . . . . . . . 1 . . . . . . . . . Guns 59 | . 13 16 . 17 13 . . . . . . . . . . . . . . . . . AOE 11 | . . 2 . . 3 . . . . 2 . . . . 1 . . . . . . 3 Classes Destroyed 17 | 2 3 7 . 1 . . . . . 1 1 . . . . . . . 1 . . 1 Worker 4 | . . 2 . . 2 . . . . . . . . . . . . . . . . . Builder 2 | . . 1 . . 1 . . . . . . . . . . . . . . . . . Tunneler 10 | 8 . 1 . . 1 . . . . . . . . . . . . . . . . . Hauler 6 | . . 5 . . 1 . . . . . . . . . . . . . . . . . Recycler 3 | 1 . 1 . . 1 . . . . . . . . . . . . . . . . . Operator 3 | . 1 1 . . 1 . . . . . . . . . . . . . . . . . Watcher 5 | . . 4 . . 1 . . . . . . . . . . . . . . . . . Swarmer 25 | . 6 8 . 2 5 . . . . . 2 . 2 . . . . . . . . . Cutter 3 | . . . . . . . . . . . . . . . . . . . . . . 3 Grunt 29 | . 7 3 . 9 8 . . . . 2 . . . . . . . . . . . . Brawler 2 | . . 1 . 1 . . . . . . . . . . . . . . . . . . Duelist 1 | . . 1 . . . . . . . . . . . . . . . . . . . . Researcher 1 | . . . . . . . . . . . . . . . . . . . 1 . . . Sentry 12 | . . 5 . 4 3 . . . . . . . . . . . . . . . . . Hunter 2 | . . . . 1 . . . . . . . . . . 1 . . . . . . . Thief 1 | . . . . . . . . . . 1 . . . . . . . . . . . . Mutant 1 | . . . . . . . . . . . 1 . . . . . . . . . . . Best Kill Streak 9 | 3 3 9 . 3 8 . . . . 2 2 . 2 . 1 . . . 1 . . 3 Combat Bots Only 7 | . 3 6 . 3 7 . . . . 2 2 . 2 . 1 . . . . . . 3 Max Kills in Single Turn 2 | 1 2 2 . 1 2 . . . . 1 1 . 1 . 1 . . . 1 . . 2 Gunslinging . | . . . . . . . . . . . . . . . . . . . . . . . Exploded 2 | . . 2 . . 2 . . . . 1 . . . . 1 . . . . . . 2 Melee 1 | . . . . . . . . . . . . . 1 . . . . . . . . . Uniques/NPCs Destroyed . | . . . . . . . . . . . . . . . . . . . . . . . Combat | -11 -10 -9 -8 -8 -8 -8 -7 -7 -6 -6 -6 -6 -5 -5 -5 -5 -4 -3 -3 -2 -2 -1 -------- Run | Yrd Mat Mat Mat Gar Mat Sto Fac DSF Fac Low Low Dat Pro Fac Upp Upp Fac Res Tes Res Qua Acc Hostile Shots Fired 867 | . 80 108 . 93 104 8 4 2 90 5 44 . 54 29 45 11 12 6 29 . 30 113 Missed 319 | . 23 30 . 24 28 2 4 2 49 2 16 . 19 10 13 5 7 2 14 . 16 53 Hits 548 | . 57 78 . 69 76 6 . . 41 3 28 . 35 19 32 6 5 4 15 . 14 60 Melee 16 | . . 1 . 2 1 . . . . 3 . . . . . . 1 . . . . 8 Projectile 532 | . 57 77 . 67 75 6 . . 41 . 28 . 35 19 32 6 4 4 15 . 14 52 AOE 2 | . . . . 1 . . . . . . . . . . . . . . . . . 1 Critical Strikes 26 | . . . . 4 4 . . . 1 . . . 1 4 1 . 2 . . . . 9 Damage Taken 9555 | . 524 946 . 1113 1411 64 . . 594 17 560 . 544 376 662 96 199 110 224 . 240 1875 Core 4169 | . 85 146 . 144 345 56 . . 239 . 108 . 399 258 439 96 101 60 46 . 119 1528 Absorbed by Shields 50 | . . . . . . . . . 43 . . . . . 7 . . . . . . . Core Remaining (%) 62 | 100 66 63 . . . . . 100 . . . . 12 . . 20 91 . 91 . 83 . Volleys Fired 315 | 31 53 66 . 90 52 . . . . 2 10 . . . 8 . . . . . . 3 Largest 2 | 2 2 2 . 2 2 . . . . 1 1 . . . 1 . . . . . . 1 Hottest 112 | 40 46 112 . 79 58 . . . . 43 43 . . . 43 . . . . . . 46 Shots Fired 593 | 62 106 132 . 167 103 . . . . 2 10 . . . 8 . . . . . . 3 Gun 561 | 62 106 132 . 152 101 . . . . . 8 . . . . . . . . . . . Cannon . | . . . . . . . . . . . . . . . . . . . . . . . Launcher 30 | . . . . 15 2 . . . . 2 2 . . . 6 . . . . . . 3 Special 2 | . . . . . . . . . . . . . . . 2 . . . . . . . Kinetic 423 | 62 106 18 . 128 101 . . . . . 8 . . . . . . . . . . . Thermal 140 | . . 114 . 24 . . . . . . . . . . 2 . . . . . . . Explosive 28 | . . . . 15 2 . . . . 2 2 . . . 4 . . . . . . 3 Electromagnetic 2 | . . . . . . . . . . . . . . . 2 . . . . . . . Robot Hit Streak 14 | 8 10 10 . 11 14 . . . . 2 5 . . . 3 . . . . . . 6 Robot Miss Streak 5 | 2 5 3 . 5 5 . . . . . 2 . . . 1 . . . . . . . Penetration Max 1 | . . . . . 1 . . . . . 1 . . . . . . . . . . . Secondary Targets 8 | . 2 . . 2 4 . . . . . . . . . . . . . . . . . Max Gunslinging Chain 1 | . 1 . . 1 1 . . . . . . . . . . . . . . . . . Shots Hit Robots 364 | 40 67 90 . 77 64 . . . . 4 9 . 2 . 4 . . . 4 . . 3 Core Hits 179 | 16 32 46 . 29 37 . . . . 5 2 . 1 . 4 . . . 1 . . 6 Critical Kills 4 | 1 . . . 2 1 . . . . . . . . . . . . . . . . . Critical Parts Destroyed 5 | . 1 . . 1 1 . . . . 1 1 . . . . . . . . . . . Critical Strikes 16 | 1 1 5 . 5 2 . . . . 1 1 . . . . . . . . . . . Burn 6 | . . 5 . 1 . . . . . . . . . . . . . . . . . . Destroy 8 | 1 1 . . 4 2 . . . . . . . . . . . . . . . . . Smash 2 | . . . . . . . . . . 1 1 . . . . . . . . . . . Melee Attacks 42 | . . . . 2 . . . . . 5 7 . 2 . 3 . . 2 16 3 1 1 Impact 16 | . . . . 2 . . . . . 5 7 . 2 . . . . . . . . . Slashing 3 | . . . . . . . . . . . . . . . 3 . . . . . . . Piercing 23 | . . . . . . . . . . . . . . . . . . 2 16 3 1 1 Sneak Attacks . | . . . . . . . . . . . . . . . . . . . . . . . Combat Hostiles . | . . . . . . . . . . . . . . . . . . . . . . . Follow-up Attacks . | . . . . . . . . . . . . . . . . . . . . . . . Damage Inflicted 8053 | 327 662 1748 . 1576 2003 . . . . 369 490 . 121 17 254 . 8 . 164 . . 314 Guns 5856 | 327 661 1603 . 1576 1552 . . . . . 137 . . . . . . . . . . . Cannons . | . . . . . . . . . . . . . . . . . . . . . . . Explosions 1588 | . . 131 . . 435 . . . . 249 208 . . . 254 . . . . . . 311 Melee 550 | . . . . . . . . . . 120 145 . 121 . . . . . 164 . . . Ramming 59 | . 1 14 . . 16 . . . . . . . . 17 . . 8 . . . . 3 Kinetic 4205 | 327 661 207 . 1321 1552 . . . . . 137 . . . . . . . . . . . Thermal 1923 | . . 1426 . 255 242 . . . . . . . . . . . . . . . . . Explosive 1156 | . . . . . 193 . . . . 249 208 . . . 195 . . . . . . 311 Electromagnetic 160 | . . 101 . . . . . . . . . . . . 59 . . . . . . . Impact 386 | . . . . . . . . . . 120 145 . 121 . . . . . . . . . Slashing . | . . . . . . . . . . . . . . . . . . . . . . . Piercing 164 | . . . . . . . . . . . . . . . . . . . 164 . . . Highest Corruption 7 | . . 1 . 7 7 7 . . . . . . . . . . . . . . . 4 Average Corruption 6 | . . 1 . 6 7 7 . . . . . . . . . . . . . . . 1 Corruption Purged . | . . . . . . . . . . . . . . . . . . . . . . . Corruption Blocked 2 | . . . . . . . . . . . . . . . . . . . 1 . 1 . Effects 105 | . . 3 . 78 20 4 . . . . . . . . . . . . . . . . Message Errors 19 | . . . . 16 1 2 . . . . . . . . . . . . . . . . Matter Fused 23 | . . 1 . 19 3 . . . . . . . . . . . . . . . . . Heat Flow Errors 18 | . . . . 12 5 1 . . . . . . . . . . . . . . . . Energy Discharges 13 | . . 1 . 10 2 . . . . . . . . . . . . . . . . . Parts Fused 2 | . . . . 2 . . . . . . . . . . . . . . . . . . Data Loss (minor) 19 | . . 1 . 13 5 . . . . . . . . . . . . . . . . . Data Loss (major) 6 | . . . . 2 3 1 . . . . . . . . . . . . . . . . Misfires 3 | . . . . 3 . . . . . . . . . . . . . . . . . . Weapon Failures 2 | . . . . 1 1 . . . . . . . . . . . . . . . . . Overload Shots . | . . . . . . . . . . . . . . . . . . . . . . . Overflow Damage 92 | . . . . . 42 . . . . . 45 . 5 . . . . . . . . . Projectiles . | . . . . . . . . . . . . . . . . . . . . . . . Explosions 42 | . . . . . 42 . . . . . . . . . . . . . . . . . Melee 50 | . . . . . . . . . . . 45 . 5 . . . . . . . . . Knockbacks 6 | . . 1 . . . . . . . 2 2 . . . . . . . . . . 1 Impact 6 | . . 1 . . . . . . . 2 2 . . . . . . . . . . 1 Kinetic . | . . . . . . . . . . . . . . . . . . . . . . . Secondary . | . . . . . . . . . . . . . . . . . . . . . . . Self-Inflicted Damage 320 | . . 28 . 61 15 . . . . . 56 . . 6 . . 4 . . . . 150 Shots 8 | . . 1 . 3 1 . . . . . 1 . . . . . . . . . . 2 Rammed 10 | . 1 1 . . 1 . . . . . . . . 5 . . 1 . . . . 1 Targets Rammed 13 | . 1 4 . . 1 . . . . . . . . 5 . . 1 . . . . 1 Kicked 3 | . . 3 . . . . . . . . . . . . . . . . . . . . Crushed . | . . . . . . . . . . . . . . . . . . . . . . . Highest Temperature 254 | . 13 147 . 230 210 254 . . . . . . . . . . . . . . . . Average Temperature 52 | . 7 35 . 94 97 130 . . . . . . . . . . . . . . . . Received Heat Transfer 1659 | . 144 222 . 513 351 . . . 48 . 42 . 36 99 96 . . 27 9 . . 72 Siege Activations . | . . . . . . . . . . . . . . . . . . . . . . . Martial Activations . | . . . . . . . . . . . . . . . . . . . . . . . Shielding Activations . | . . . . . . . . . . . . . . . . . . . . . . . Robots Disrupted . | . . . . . . . . . . . . . . . . . . . . . . . Combat Hostiles . | . . . . . . . . . . . . . . . . . . . . . . . Robots Corrupted 5 | . . . . . . . . . . 1 3 . 1 . . . . . . . . . Combat Hostiles 5 | . . . . . . . . . . 1 3 . 1 . . . . . . . . . Parts Fried 6 | . . . . . . . . . . 1 5 . . . . . . . . . . . Impact Corruptions 6 | . . . . . . . . . . 1 4 . 1 . . . . . . . . . Robots Melted . | . . . . . . . . . . . . . . . . . . . . . . . Combat Hostiles . | . . . . . . . . . . . . . . . . . . . . . . . Parts Melted 10 | . . 10 . . . . . . . . . . . . . . . . . . . . Heat Transferred 4273 | . . 3454 . 619 200 . . . . . . . . . . . . . . . . . Parts Sabotaged . | . . . . . . . . . . . . . . . . . . . . . . . Parts Stolen 2 | . . . . . . . . . . 2 . . . . . . . . . . . . Parts Stripped . | . . . . . . . . . . . . . . . . . . . . . . . Power Chain Reactions 1 | . . 1 . . . . . . . . . . . . . . . . . . . . Alert | -11 -10 -9 -8 -8 -8 -8 -7 -7 -6 -6 -6 -6 -5 -5 -5 -5 -4 -3 -3 -2 -2 -1 ------- Run | Yrd Mat Mat Mat Gar Mat Sto Fac DSF Fac Low Low Dat Pro Fac Upp Upp Fac Res Tes Res Qua Acc Maximum Alert Level 4 | . . 1 . 4 3 2 . . . . . . . 1 . . . . . . . . Low Security (%) 52 | 100 100 63 100 12 . . 100 100 100 . . . . . . . 100 100 100 100 100 100 Level 1 13 | . . 36 . 16 . 44 . . . . . . . 100 . . . . . . . . Level 2 5 | . . . . 14 . 55 . . . . . . . . . . . . . . . . Level 3 20 | . . . . 35 100 . . . . . . . . . . . . . . . . . Level 4 7 | . . . . 21 . . . . . . . . . . . . . . . . . . Level 5 . | . . . . . . . . . . . . . . . . . . . . . . . High Security . | . . . . . . . . . . . . . . . . . . . . . . . Max Security . | . . . . . . . . . . . . . . . . . . . . . . . Peak Influence 1520 | 10 66 270 104 1520 1020 427 171 73 160 . . . . 261 . . 82 31 56 66 51 146 Initial 741 | . . 5 101 61 741 427 171 73 37 . . . . 261 . . 49 16 16 27 36 . Average 377 | . 24 109 97 761 842 404 134 73 44 . . . . 242 . . 43 9 29 32 33 4 Influence Increases 4769 | 45 309 645 3 1609 612 . 34 . 255 50 95 . 247 180 45 78 63 49 182 69 15 184 Destroy 0b10 Robot/C 1840 | . 260 360 . 560 320 . . . . 40 40 . 100 . 20 60 . . 20 . . 60 Destroy 0b10 Robot/NC 175 | 45 5 75 . 5 40 . . . . . . . . . . . 5 . . . . . Destroy Leader 312 | . 40 108 . 30 74 . . . . 10 10 . 10 . 10 10 . . . . . 10 Allied During Kill 75 | . . . . 50 . . . . . . . . 17 . . 8 . . . . . . Successful Hack 92 | . 4 11 3 . 4 . 4 . . . . . . . . . . . 36 30 . . Disable Machine 300 | . . 60 . 45 105 . . . . . . . . . . . 30 . 30 . 15 15 Anti-Garrison Action 800 | . . . . 800 . . . . . . . . . . . . . . . . . . Destroy Structure 200 | . . 1 . 74 24 . . . . . . . . . . . 28 4 6 9 . 54 Advance Influence 150 | . . . . . . . . . . . . . . 150 . . . . . . . . Partial Spotted 165 | . . 15 . . 15 . . . 30 . . . . . . . . 30 30 30 . 15 Lose Combat Pursuer 660 | . . 15 . 45 30 . 30 . 225 . 45 . 120 30 15 . . 15 60 . . 30 Influence Decreases 4623 | 45 295 418 150 183 1121 634 306 32 178 166 129 . 70 136 263 2 110 51 162 53 80 39 Entered New Map 2147 | . . 9 140 33 779 584 206 32 36 56 7 . . 66 83 2 30 16 14 23 30 1 Time Decay 1926 | 45 275 374 10 . 262 50 100 . 110 110 92 . 40 40 140 . 50 35 130 20 20 23 Lost Part 402 | . 20 35 . 50 80 . . . 32 . 30 . 10 30 40 . 10 . 10 10 30 15 Lost Ally 148 | . . . . 100 . . . . . . . . 20 . . . 20 . 8 . . . Squads Dispatched 23 | . 2 . . . 2 1 1 . 1 . . . . 1 . . 4 1 4 1 1 4 Investigation 6 | . 2 . . . . 1 1 . . . . . . . . . 1 . . 1 . . Extermination 5 | . . . . . . . . . . . . . . 1 . . . 1 1 . . 2 Reinforcement 10 | . . . . . 2 . . . 1 . . . . . . . 1 . 3 . 1 2 Assault 2 | . . . . . . . . . . . . . . . . . 2 . . . . . Garrison . | . . . . . . . . . . . . . . . . . . . . . . . Intercept . | . . . . . . . . . . . . . . . . . . . . . . . Searches Triggered . | . . . . . . . . . . . . . . . . . . . . . . . Data Miner Redirects 1 | . . . . . . . . . . . . . . . . . 1 . . . . . Construction Impeded . | . . . . . . . . . . . . . . . . . . . . . . . Haulers Reinforced . | . . . . . . . . . . . . . . . . . . . . . . . Active Scanning Responses . | . . . . . . . . . . . . . . . . . . . . . . . Cargo Convoy Interrupts . | . . . . . . . . . . . . . . . . . . . . . . . Stealth | -11 -10 -9 -8 -8 -8 -8 -7 -7 -6 -6 -6 -6 -5 -5 -5 -5 -4 -3 -3 -2 -2 -1 --------- Run | Yrd Mat Mat Mat Gar Mat Sto Fac DSF Fac Low Low Dat Pro Fac Upp Upp Fac Res Tes Res Qua Acc Distress Signals 13 | . . 4 . . 3 . . . 2 . . . 1 1 . . . . . . 1 1 Communications Jammed . | . . . . . . . . . . . . . . . . . . . . . . . Distress Signals . | . . . . . . . . . . . . . . . . . . . . . . . Times Spotted 255 | . 20 28 . 32 31 6 2 1 19 5 8 . 18 14 4 5 6 2 18 2 6 28 Peak Tracking Total 18 | . 4 6 . 5 10 7 2 1 10 2 3 . 10 12 7 5 4 2 10 1 5 18 Tactical Retreats 21 | . . 1 . 2 2 . 1 . 5 . 2 . 3 1 1 . . 1 1 . . 1 Traps | -11 -10 -9 -8 -8 -8 -8 -7 -7 -6 -6 -6 -6 -5 -5 -5 -5 -4 -3 -3 -2 -2 -1 ------- Run | Yrd Mat Mat Mat Gar Mat Sto Fac DSF Fac Low Low Dat Pro Fac Upp Upp Fac Res Tes Res Qua Acc Traps Triggered 5 | . 1 . . . . 1 . . 1 . . . . . . . . . . . 1 1 Indirectly . | . . . . . . . . . . . . . . . . . . . . . . . Trap Hack Attempts . | . . . . . . . . . . . . . . . . . . . . . . . Triggered . | . . . . . . . . . . . . . . . . . . . . . . . Disarmed . | . . . . . . . . . . . . . . . . . . . . . . . Reprogrammed . | . . . . . . . . . . . . . . . . . . . . . . . Reused . | . . . . . . . . . . . . . . . . . . . . . . . Traps Extracted . | . . . . . . . . . . . . . . . . . . . . . . . Installed . | . . . . . . . . . . . . . . . . . . . . . . . Triggered . | . . . . . . . . . . . . . . . . . . . . . . . Machines | -11 -10 -9 -8 -8 -8 -8 -7 -7 -6 -6 -6 -6 -5 -5 -5 -5 -4 -3 -3 -2 -2 -1 ---------- Run | Yrd Mat Mat Mat Gar Mat Sto Fac DSF Fac Low Low Dat Pro Fac Upp Upp Fac Res Tes Res Qua Acc Machines Disabled 24 | . . 4 . 6 7 . . . . . 1 . . . . . 2 . 2 . 1 1 Max in Single Turn 4 | . . 2 . 2 4 . . . . . 1 . . . . . . . 1 . 1 1 Garrison Access 1 | . . . . . . . . . . . . . . . . . 1 . . . . . Phase Generator 1 | . . . . 1 . . . . . . . . . . . . . . . . . . Machines Repaired . | . . . . . . . . . . . . . . . . . . . . . . . Machines Dismantled . | . . . . . . . . . . . . . . . . . . . . . . . Machines Sabotaged . | . . . . . . . . . . . . . . . . . . . . . . . Overloaded Fab Kills . | . . . . . . . . . . . . . . . . . . . . . . . Hacking | -11 -10 -9 -8 -8 -8 -8 -7 -7 -6 -6 -6 -6 -5 -5 -5 -5 -4 -3 -3 -2 -2 -1 --------- Run | Yrd Mat Mat Mat Gar Mat Sto Fac DSF Fac Low Low Dat Pro Fac Upp Upp Fac Res Tes Res Qua Acc Machines Accessed 40 | . 4 6 1 3 1 3 2 . . . . 4 . 1 1 . 1 4 4 1 3 1 Terminals 31 | . 4 5 . 3 1 2 2 . . . . . . 1 . . 1 3 4 1 3 1 Fabricators 1 | . . . . . . . . . . . . . . . . . . 1 . . . . Repair Stations . | . . . . . . . . . . . . . . . . . . . . . . . Recycling Units 1 | . . . . . . 1 . . . . . . . . . . . . . . . . Scanalyzers 1 | . . 1 . . . . . . . . . . . . . . . . . . . . Garrison Access 1 | . . . 1 . . . . . . . . . . . . . . . . . . . Total Hacks 108 | . 12 11 2 9 2 4 4 . . . . 31 . 1 1 . 5 4 12 3 6 1 Successful 61 | . 1 7 1 . 1 2 1 . . . . 31 . 1 1 . 3 1 4 2 5 . Failed 45 | . 11 3 1 9 1 2 3 . . . . . . . . . 1 3 8 1 1 1 Catastrophic 11 | . 3 1 . 2 . . . . . . . . . . . . 1 1 2 1 . . Database Lockouts 2 | . . 1 . . . . . . . . . . . . . . 1 . . . . . Manual 17 | . 3 4 . . 1 . . . . . . . . . . . . 2 4 2 . 1 Terminals 70 | . 12 9 . 9 2 3 4 . . . . . . 1 . . 5 3 12 3 6 1 Fabricators 1 | . . . . . . . . . . . . . . . . . . 1 . . . . Repair Stations . | . . . . . . . . . . . . . . . . . . . . . . . Recycling Units 1 | . . . . . . 1 . . . . . . . . . . . . . . . . Scanalyzers 2 | . . 2 . . . . . . . . . . . . . . . . . . . . Garrison Access 2 | . . . 2 . . . . . . . . . . . . . . . . . . . Terminal Hacks 55 | . 1 5 . . 1 1 1 . . . . 31 . 1 1 . 3 1 3 1 5 . Record 16 | . . . . . . . . . . . . 11 . . . . 3 . . . 2 . Part Schematic 11 | . . . . . . . . . . . . 11 . . . . . . . . . . Robot Schematic 6 | . . . . . . . . . . . . 6 . . . . . . . . . . Prototype ID Bank 8 | . . 5 . . . . . . . . . 3 . . . . . . . . . . Open Door 3 | . . . . . . 1 . . . . . . . . 1 . . . 1 . . . Open DSF 2 | . . . . . . . 1 . . . . . . . . . . 1 . . . . Level Access Points 2 | . . . . . . . . . . . . . . . . . . . 1 . 1 . Branch Access Points 3 | . . . . . . . . . . . . . . 1 . . . . 1 1 . . Locate Traps 3 | . 1 . . . 1 . . . . . . . . . . . . . . . 1 . Zone Layout 1 | . . . . . . . . . . . . . . . . . . . . . 1 . Fabricator Hacks . | . . . . . . . . . . . . . . . . . . . . . . . Repair Station Hacks . | . . . . . . . . . . . . . . . . . . . . . . . Recycling Unit Hacks 1 | . . . . . . 1 . . . . . . . . . . . . . . . . Report Inventory 1 | . . . . . . 1 . . . . . . . . . . . . . . . . Scanalyzer 2 | . . 2 . . . . . . . . . . . . . . . . . . . . Insert Component 1 | . . 1 . . . . . . . . . . . . . . . . . . . . Analyze 1 | . . 1 . . . . . . . . . . . . . . . . . . . . Garrison Access Hacks 1 | . . . 1 . . . . . . . . . . . . . . . . . . . Unlock Access 1 | . . . 1 . . . . . . . . . . . . . . . . . . . Unauthorized Hacks 2 | . . . . . . . . . . . . . . . . . . . 1 1 . . Terminals 2 | . . . . . . . . . . . . . . . . . . . 1 1 . . Assimilate 2 | . . . . . . . . . . . . . . . . . . . 1 1 . . Fabricators . | . . . . . . . . . . . . . . . . . . . . . . . Repair Stations . | . . . . . . . . . . . . . . . . . . . . . . . Recycling Units . | . . . . . . . . . . . . . . . . . . . . . . . Scanalyzers . | . . . . . . . . . . . . . . . . . . . . . . . Garrison Access . | . . . . . . . . . . . . . . . . . . . . . . . Data Cores Recovered 2 | . 1 1 . . . . . . . . . . . . . . . . . . . . Used 1 | . . 1 . . . . . . . . . . . . . . . . . . . . Hacking Detections 23 | . 4 4 . 3 1 . 1 . . . . . . . . . 1 3 3 1 1 1 Full Trace Events 8 | . 2 . . 3 . . 1 . . . . . . . . . 1 . . 1 . . Feedback Events 1 | . . . . . . . . . . . . . . . . . . . . 1 . . Hackware Fried 1 | . . . . . . . . . . . . . . . . . . . . 1 . . Feedback Blocked . | . . . . . . . . . . . . . . . . . . . . . . . Robot Schematics Acquired 7 | . . . . . . . . . . . . 6 . . . . . . 1 . . . Robots Built . | . . . . . . . . . . . . . . . . . . . . . . . Authchips . | . . . . . . . . . . . . . . . . . . . . . . . Time . | . . . . . . . . . . . . . . . . . . . . . . . Total Robot Build Rating . | . . . . . . . . . . . . . . . . . . . . . . . Part Schematics Acquired 14 | . . 1 . . . . . . . . . 11 . . . . . . 2 . . . Parts Built . | . . . . . . . . . . . . . . . . . . . . . . . Authchips . | . . . . . . . . . . . . . . . . . . . . . . . Time . | . . . . . . . . . . . . . . . . . . . . . . . Total Part Build Rating . | . . . . . . . . . . . . . . . . . . . . . . . Parts Repaired . | . . . . . . . . . . . . . . . . . . . . . . . Time . | . . . . . . . . . . . . . . . . . . . . . . . Parts Recycled . | . . . . . . . . . . . . . . . . . . . . . . . Recycled Matter . | . . . . . . . . . . . . . . . . . . . . . . . Retrieved Matter . | . . . . . . . . . . . . . . . . . . . . . . . Retrieved Components . | . . . . . . . . . . . . . . . . . . . . . . . Parts Scanalyzed 1 | . . 1 . . . . . . . . . . . . . . . . . . . . Part Schematics Acquired 1 | . . 1 . . . . . . . . . . . . . . . . . . . . Parts Damaged 1 | . . 1 . . . . . . . . . . . . . . . . . . . . Bothacking | -11 -10 -9 -8 -8 -8 -8 -7 -7 -6 -6 -6 -6 -5 -5 -5 -5 -4 -3 -3 -2 -2 -1 ------------ Run | Yrd Mat Mat Mat Gar Mat Sto Fac DSF Fac Low Low Dat Pro Fac Upp Upp Fac Res Tes Res Qua Acc Used RIF Installer . | . . . . . . . . . . . . . . . . . . . . . . . Robots Hacked . | . . . . . . . . . . . . . . . . . . . . . . . Non-combat . | . . . . . . . . . . . . . . . . . . . . . . . Combat . | . . . . . . . . . . . . . . . . . . . . . . . Robot Hacks Applied . | . . . . . . . . . . . . . . . . . . . . . . . Relay Couplers Released 2 | . . . . . . . . . . . . . . . . . 2 . . . . . Machine Destruction 2 | . . . . . . . . . . . . . . . . . 2 . . . . . Fabnet Peak Effective % . | . . . . . . . . . . . . . . . . . . . . . . . Robots Rewired 5 | . . . . 5 . . . . . . . . . . . . . . . . . . Allies Hacked . | . . . . . . . . . . . . . . . . . . . . . . . Hacks Repelled . | . . . . . . . . . . . . . . . . . . . . . . . Allies | -11 -10 -9 -8 -8 -8 -8 -7 -7 -6 -6 -6 -6 -5 -5 -5 -5 -4 -3 -3 -2 -2 -1 -------- Run | Yrd Mat Mat Mat Gar Mat Sto Fac DSF Fac Low Low Dat Pro Fac Upp Upp Fac Res Tes Res Qua Acc Total Allies 8 | . . . . 5 . . . . . . . . 1 . . 1 . . 1 . . . Largest Group 3 | . . . . 3 . . . . . . . . 1 . . 1 1 . 1 . . . Highest-Rated Group 146 | . . . . 120 . . . . . . . . 96 . . 146 146 . 26 . . . Highest-Rated Ally 146 | . . . . 40 . . . . . . . . 96 . . 146 146 . 26 . . . Initial Warlord ECA Mod 71 | . . . . . 7 7 6 6 5 5 5 5 4 4 4 4 3 2 2 1 1 . Total Orders . | . . . . . . . . . . . . . . . . . . . . . . . Ally Attacks 43 | . . . . 30 . . . . . . . . 9 . . 3 1 . . . . . Total Damage 1682 | . . . . 687 . . . . . . . . 237 . . 175 583 . . . . . Kills 19 | . . . . 12 . . . . . . . . 3 . . 3 1 . . . . . Allies Corrupted . | . . . . . . . . . . . . . . . . . . . . . . . Allies Melted . | . . . . . . . . . . . . . . . . . . . . . . . Intel | -11 -10 -9 -8 -8 -8 -8 -7 -7 -6 -6 -6 -6 -5 -5 -5 -5 -4 -3 -3 -2 -2 -1 ------- Run | Yrd Mat Mat Mat Gar Mat Sto Fac DSF Fac Low Low Dat Pro Fac Upp Upp Fac Res Tes Res Qua Acc Active Infowar (turns) 3981 | 138 832 276 . . 17 108 219 29 240 229 309 43 128 83 296 7 101 179 274 54 57 362 Optics 2926 | . . 191 . . 17 108 219 29 240 229 309 43 128 83 296 7 101 179 274 54 57 362 Traps 568 | . . . . . . . . . . . . . . . . . . 97 274 54 57 86 Seismic 1635 | 138 832 208 . . . 60 219 29 149 . . . . . . . . . . . . . Decoding 1215 | . . . . . . . . . . . . . . . 197 7 101 179 274 54 57 346 Robot Analysis Total . | . . . . . . . . . . . . . . . . . . . . . . . Derelict Logs Recovered 4 | . . . . . . . . . . 1 2 . . . 1 . . . . . . . Drone Launches . | . . . . . . . . . . . . . . . . . . . . . . . Drone Recoveries . | . . . . . . . . . . . . . . . . . . . . . . . Decoded 0b10 Intel 29 | . . . . . . . . . . . . . . . . . 3 5 8 1 3 9 Traps 2 | . . . . . . . . . . . . . . . . . . . 1 . . 1 Emergency Access 1 | . . . . . . . . . . . . . . . . . . . . . . 1 Items 17 | . . . . . . . . . . . . . . . . . 2 2 5 1 3 4 Machines 4 | . . . . . . . . . . . . . . . . . 1 . 2 . . 1 Patrols 3 | . . . . . . . . . . . . . . . . . . 1 . . . 2 Guards 2 | . . . . . . . . . . . . . . . . . . 2 . . . . Exploration | -11 -10 -9 -8 -8 -8 -8 -7 -7 -6 -6 -6 -6 -5 -5 -5 -5 -4 -3 -3 -2 -2 -1 ------------- Run | Yrd Mat Mat Mat Gar Mat Sto Fac DSF Fac Low Low Dat Pro Fac Upp Upp Fac Res Tes Res Qua Acc Turns Passed 8439 | 311 832 1291 35 2662 575 108 219 29 240 229 309 43 128 83 296 7 101 179 274 54 57 377 Spaces Moved 7345 | 142 291 559 20 1341 257 188 391 64 533 415 522 107 271 202 469 14 134 373 497 109 125 321 Core 1277 | 13 . . . . 106 188 210 . . . . . 47 33 469 14 90 . . . 1 106 Treads 2015 | 129 291 83 20 1341 151 . . . . . . . . . . . . . . . . . Legs 209 | . . 209 . . . . . . . . . . . . . . . . . . . . Wheels 267 | . . 267 . . . . . . . . . . . . . . . . . . . . Hover . | . . . . . . . . . . . . . . . . . . . . . . . Flight 3577 | . . . . . . . 181 64 533 415 522 107 224 169 . . 44 373 497 109 124 215 Fastest Speed 25 | 50 160 115 170 170 50 50 40 40 37 40 37 40 35 35 50 50 40 34 40 40 40 25 Average Speed 90 | 149 231 181 170 170 151 50 45 40 39 42 45 40 39 37 51 50 46 39 40 40 40 43 Slowest Speed 330 | 160 320 330 170 250 250 50 50 40 40 44 200 40 100 50 100 50 50 40 40 40 150 100 Overloaded Moves . | . . . . . . . . . . . . . . . . . . . . . . . Propulsion Burnouts . | . . . . . . . . . . . . . . . . . . . . . . . Robots Hopped 30 | . . . . . . . . . 14 . 2 . . 3 . . 3 1 6 . . 1 Potential Cave-ins 2 | . . . . . . . . . . . . . . . 2 . . . . . . . Cave-ins Triggered . | . . . . . . . . . . . . . . . . . . . . . . . Teleports 2 | . . . . . . . . . . . . . . . . . . . . . 1 1 Exploration Rate (%) 39 | 7 75 52 3 96 43 43 15 76 20 61 89 80 51 11 61 4 6 14 66 3 20 15 Regions Visited 22 Branch Regions 9 Pre-discovered Areas 2 | . . . . . . . . . . 1 . 1 . . . . . . . . . . Known Exits Taken 12 | . . . 1 . . . 1 . 1 1 1 1 1 1 1 . . . 1 1 1 . Unknown Exits Taken 8 | 1 1 1 . . 1 1 . . . . . . . . . 1 1 1 . . . . Scrap Searched 14 | . . . . . . . . . . 7 3 . . . 4 . . . . . . . Spaces Dug 29 | . . . . 16 . . . . . . . . . . 3 . . 2 4 3 . 1 Terrain Destroyed 292 | . . . . 144 21 . . . . 31 8 . . . 58 . . 2 4 3 . 21 Melee 13 | . . . . . . . . . . . . . . . 3 . . 2 4 3 . 1 Projectile 3 | . . . . 3 . . . . . . . . . . . . . . . . . . AOE 275 | . . . . 140 21 . . . . 31 8 . . . 55 . . . . . . 20 Terrain Rammed . | . . . . . . . . . . . . . . . . . . . . . . . Walls Destroyed . | . . . . . . . . . . . . . . . . . . . . . . . Machines Disabled . | . . . . . . . . . . . . . . . . . . . . . . . Actions | -11 -10 -9 -8 -8 -8 -8 -7 -7 -6 -6 -6 -6 -5 -5 -5 -5 -4 -3 -3 -2 -2 -1 --------- Run | Yrd Mat Mat Mat Gar Mat Sto Fac DSF Fac Low Low Dat Pro Fac Upp Upp Fac Res Tes Res Qua Acc Total 8479 | 191 362 707 21 1551 344 201 430 66 549 454 578 106 289 206 506 13 169 399 541 114 128 554 Wait 437 | . 1 22 . 18 12 10 25 . 14 11 25 . 8 . 4 . 30 10 23 3 . 221 Move 7271 | 141 290 558 19 1339 257 187 390 63 508 414 518 106 270 196 468 13 129 370 484 108 124 319 Hop 23 | . . . . . . . . . 10 . 1 . . 2 . . 2 1 6 . . 1 Pick Up 97 | 11 12 25 . 11 7 . 1 1 1 6 1 . 2 . 6 . 4 7 . . 1 1 Fast Attach 37 | 1 . 2 . 5 2 2 7 . 3 4 1 . 1 1 3 . . 1 3 . 1 . Attach 67 | 6 1 9 2 5 2 . . 1 2 6 7 . 3 . 10 . 3 6 . . . 4 Detach 18 | . . . . . . . 1 . 1 3 6 . 1 1 3 . . . 1 . . 1 Swap 20 | . 3 5 . 8 2 . 1 1 . . . . . . . . . . . . . . Drop 62 | 1 1 16 . 9 10 2 5 . 1 3 2 . 2 1 1 . 1 2 2 . 1 2 Fire 315 | 31 53 66 . 90 52 . . . . 2 10 . . . 8 . . . . . . 3 Melee 42 | . . . . 2 . . . . . 5 7 . 2 . 3 . . 2 16 3 1 1 Ram 6 | . . . . . . . . . . . . . . 5 . . . . . . . 1 Kick 3 | . . 3 . . . . . . . . . . . . . . . . . . . . Crush 2 | . 1 1 . . . . . . . . . . . . . . . . . . . . Escape Stasis 15 | . . . . . . . . . 9 . . . . . . . . . 6 . . . Rewire 64 | . . . . 64 . . . . . . . . . . . . . . . . . . Trap . | . . . . . . . . . . . . . . . . . . . . . . . Miscellaneous . | . . . . . . . . . . . . . . . . . . . . . . . Route ------- -11/Scrapyard -10/Materials (discovered 3 exits: *Mat x2 / [*Min]) -9/Materials (discovered 2 exits: *Mat x2) -8/Materials -8/Garrison (discovered 4 exits: *Fac x3 / *Mat) -8/Materials (discovered 3 exits: *Fac / *Sto x2) -8/Storage -7/Factory -7/DSF -6/Factory -6/Lower Caves -6/Lower Caves (discovered 2 exits: *Fac / *Dat) -6/Data Miner -5/Proximity Caves -5/Factory (discovered 2 exits: *Upp x2) -5/Upper Caves -5/Upper Caves -4/Factory (discovered 2 exits: *Res / Ext) -3/Research -3/Testing -2/Research (discovered 2 exits: *Qua x2) -2/Quarantine -1/Access History --------- Turn | Location | Event 14 | -11/Scrapyard | Discovered new exit (range 16) 312 | -11/Scrapyard | Entered Materials 313 | -10/Materials | Build established: Mutant 476 | -10/Materials | Discovered new exit (range 8) 662 | -10/Materials | Discovered new exit (range 12) 1036 | -10/Materials | Discovered new exit (range 5) 1144 | -10/Materials | Entered another Materials area 1144 | -9/Materials | Evolved 2 slots: Propulsion x1, Utility x1 1642 | -9/Materials | Discovered new exit (range 3) 2081 | -9/Materials | Discovered new exit (range 14) 2106 | -9/Materials | Central database locked down 2435 | -9/Materials | Entered another Materials area 2435 | -8/Materials | Evolved 2 slots: Propulsion x1, Utility x1 2453 | -8/Materials | Identified exit to Garrison 2470 | -8/Materials | Entered Garrison 2516 | -8/Garrison | Triggered checkpoint 2674 | -8/Garrison | Triggered checkpoint 2701 | -8/Garrison | Discovered new exit (range 5) 2864 | -8/Garrison | Triggered checkpoint 2890 | -8/Garrison | Triggered checkpoint 2971 | -8/Garrison | Discovered new exit (range 8) 2980 | -8/Garrison | Triggered checkpoint 3222 | -8/Garrison | Triggered checkpoint 3258 | -8/Garrison | Triggered checkpoint 3341 | -8/Garrison | Build established: Scavenger-Mutant 3342 | -8/Garrison | Triggered checkpoint 3525 | -8/Garrison | Discovered new exit (range 12) 3693 | -8/Garrison | Discovered new exit (range 10) 3726 | -8/Garrison | Triggered checkpoint 3872 | -8/Garrison | Phase Generator disabled 4996 | -8/Garrison | Attempted to access garrison exit controls, blocked by remote lockdown 5132 | -8/Garrison | Entered Materials 5172 | -8/Materials | Discovered new exit (range 5) 5295 | -8/Materials | Destroyed 7 combat bots 5645 | -8/Materials | Core integrity fell below 50% 5661 | -8/Materials | Core integrity fell below 20% 5661 | -8/Materials | Discovered new exit (range 10) 5684 | -8/Materials | Lost 7 parts (3n1u3w) 5704 | -8/Materials | Discovered new exit (range 6) 5707 | -8/Materials | Entered Storage 5811 | -8/Storage | Discovered new exit (range 9) 5815 | -8/Storage | Entered Factory 5815 | -7/Factory | Evolved 2 slots: Utility x2 5965 | -7/Factory | Build established: Mutant 6033 | -7/Factory | Identified exit to DSF 6034 | -7/Factory | Entered DSF 6050 | -7/DSF | Additional patrols routed to DSF 6055 | -7/DSF | Discovered new exit (range 20) 6063 | -7/DSF | Entered Factory 6063 | -6/Factory | Evolved 2 slots: Power x1, Utility x1 6267 | -6/Factory | Lost 5 parts (1n4u) 6297 | -6/Factory | Discovered new exit (range 16) 6303 | -6/Factory | Identified exit to Lower Caves 6303 | -6/Factory | Entered Lower Caves 6326 | -6/Lower Caves | Met a Warlord Commander 6327 | -6/Lower Caves | Learned location of Warlord (-4) 6328 | -6/Lower Caves | Warlord Commander delivered Encrypted Comm Array 6328 | -6/Lower Caves | Found Encrypted Comm Array 6339 | -6/Lower Caves | Learned Factory garrison access intel 6442 | -6/Lower Caves | Encountered a Warlord checkpoint 6445 | -6/Lower Caves | Discovered new exit (range 9) 6530 | -6/Lower Caves | Identified exit to Lower Caves 6532 | -6/Lower Caves | Entered another Lower Caves area 6553 | -6/Lower Caves | Attacked by a delusional Derelict stockpiling parts 6569 | -6/Lower Caves | Discovered new exit (range 6) 6571 | -6/Lower Caves | Identified exit to Factory 6760 | -6/Lower Caves | Spotted B-75 Beast 6764 | -6/Lower Caves | Encountered a Warlord checkpoint 6823 | -6/Lower Caves | Discovered new exit (range 5) 6830 | -6/Lower Caves | Identified exit to Data Miner 6841 | -6/Lower Caves | Entered Data Miner 6841 | -6/Data Miner | Discovered new exit (range 6) 6847 | -6/Data Miner | Identified exit to Proximity Caves 6850 | -6/Data Miner | Met Data Miner 6862 | -6/Data Miner | Learned location of Section 7 (-2) 6862 | -6/Data Miner | Acquired the access code to Warlord's prototype stash 6868 | -6/Data Miner | Received God Mode back door access code from Data Miner 6884 | -6/Data Miner | Entered Proximity Caves 6932 | -5/Proximity Caves | Core integrity fell below 50% 6950 | -5/Proximity Caves | Escorted by Enhanced Grunt 6962 | -5/Proximity Caves | Core integrity fell below 20% 7006 | -5/Proximity Caves | Spotter reported a threat 7007 | -5/Proximity Caves | Discovered exit to Factory (range 15) 7012 | -5/Proximity Caves | Entered Factory 7012 | -5/Factory | Evolved 2 slots: Utility x2 7013 | -5/Factory | Loaded intel: 4 garrison access locations 7038 | -5/Factory | Identified exit to Upper Caves 7095 | -5/Factory | Entered Upper Caves 7097 | -5/Upper Caves | Attracted the attention of an 0b10 checkpoint 7124 | -5/Upper Caves | Lost 3 parts (1n1u1w) 7164 | -5/Upper Caves | Core integrity fell below 50% 7208 | -5/Upper Caves | Lost 3 parts (3w) 7365 | -5/Upper Caves | Identified exit to Upper Caves 7391 | -5/Upper Caves | Entered another Upper Caves area 7394 | -5/Upper Caves | NK-0LA showed up to help 7396 | -5/Upper Caves | NK-0LA revealed a hidden path 7398 | -5/Upper Caves | Entered Factory 7398 | -4/Factory | Accompanied by 1 ally (NK-0LA) 7398 | -4/Factory | Evolved 2 slots: Propulsion x1, Utility x1 7399 | -4/Factory | Identified exit to Extension 7433 | -4/Factory | Build established: Hacker-Mutant 7461 | -4/Factory | Central database locked down 7462 | -4/Factory | Spotted B-86 Titan 7464 | -4/Factory | Noticed a derelict Sapper rigging charges 7485 | -4/Factory | Incoming assault squad redirected 7495 | -4/Factory | Discovered new exit (range 4) 7499 | -4/Factory | Entered Research 7499 | -3/Research | Evolved 2 slots: Utility x2 7548 | -3/Research | Identified exit to DSF 7665 | -3/Research | Discovered new exit (range 12) 7678 | -3/Research | Entered Testing 7708 | -3/Testing | Identified exit to Research 7808 | -3/Testing | Scanned by Researcher 7837 | -3/Testing | Spotted Striker 7837 | -3/Testing | Spotted Striker 7846 | -3/Testing | Found Prototype Energy Cannon 7846 | -3/Testing | Identified Null Cannon 7952 | -3/Testing | Entered Research 7952 | -2/Research | Evolved 2 slots: Utility x2 7973 | -2/Research | Discovered new exit (range 9) 7979 | -2/Research | Identified exit to Quarantine 7984 | -2/Research | System Shield fried by hacking feedback 8006 | -2/Research | Entered Quarantine 8016 | -2/Quarantine | Found Alien Artifact 8021 | -2/Quarantine | Found Alien Artifact 8021 | -2/Quarantine | Identified Transdimensional Reconstructor 8021 | -2/Quarantine | Warped through subspace 8028 | -2/Quarantine | Identified exit to Access 8063 | -2/Quarantine | Entered Access 8063 | -1/Access | Evolved 2 slots: Weapon x2 8091 | -1/Access | Lost 3 parts (2n1u) 8173 | -1/Access | Identified Hpw. Transdimensional Reconstructor 8173 | -1/Access | Warped through subspace 8417 | -1/Access | Core integrity fell below 50% 8431 | -1/Access | Core integrity fell below 20% 8440 | -1/Access | Destroyed by P-80 Master with Gamma Rifle Last Messages --------------- 08410_ Penetrated by Slug. 08410_ Knocked back. 08411_ P-80 Master resets R-10 Processor, system corruption cleaned. 08412_ Knocked back. 08413_ Enh. Optical Array destroyed. 08413_ Knocked back. 08417_ U-05 Engineer lays Concrete. 08425_ Triggered Segregator Trap. 08425_ Arcs of energy rise from the floor. 08425_ Adv. Hacking Suite blown off. 08425_ Adv. Visual Processing Unit blown off. 08428_ C-57 Dissector destroyed. 08428_ Terminal disabled. 08430_ C-57 Dissector destroyed. 08432_ Smartbomb Launcher destroyed. 08436_ Acquired Adv. Surge Thruster. 08438_ Acquired 18 matter. 08438_ P-80 Master resets P-80 Master, system corruption cleaned. 08439_ The unstable cave ceiling collapses. 08440_ P-80 Master resets P-80 Master, system corruption cleaned. Map ----- +----------------------------------------------------+ | ?????????????????????????????????????????????????? | | ?????????????????????????????????????????????????? | | ?????????????????????????????????????????????????? | | ?????????????????????????????????????????????????? | | ?????????????????????????????????????????????????? | | ????????????????###########??????????????????????? | | ????????????????# ? #???????????????????? | | ????????????????# #???????????????????? | | ????????????????# #???????????????????? | | ????????????????# #???????????????????? | | ????????????????# #???????????????????? | | ????????????????# "" #???????????????????? | | ????????????????# "" #???????????????????? | | ????????????????# T" #???????????????????? | | ????????????????# " #???????????????????? | | ????????????????# #???????????????????? | | ????????????????# #???????????????????? | | ????????????????# #???????????????????? | | ????????????????#### # ###???????????????????? | | ??????????????????##^ ##????????????????????? | | ??????????????????# ##???????????????????? | | ??????????????????# ! #???????????????????? | | ??????????????????# #???????????????????? | | ??????????????????## p #???????????????????? | | ???????????????????# p #?????? ??????????#?? | | ???????????????????# @ g########+######## # # | | ???????????????????# p | | ???????????????????# gpg | | ???????????????????# pg | | ???????????????????+ p g | | ???????????????????# | | ???????????????????# | | ???????????????????# | | ???????????????????###########+############### | | ?????????????????????????????????????????????? # | | ?????????????????????????????????????????????? # | | ?????????????????????????????????????????????? + | | ?????????????????????????????????????????????? # | | ?????????????????????????????????????????????? # | | ?????????????????????????????????????????????? # | | ?????????????????????????????????????????????? # | | ?????????????????????????????????????????????? # | | ???????????????????????????????????????????????# | | ???????????????????????????????????????????????# | | ???????????????????????????????????????????????# | | ???????????????????????????????????????????????# | | ??????????????????????????????????#######??????# | | ??????????????????????????????????# ????# | | ??????????????????????????????????? ?!# | | ????????????????????????????????????? """"" # | +----------------------------------------------------+ Best States ------------- Heat Dissipation 58 Energy Generation 14 Energy Capacity 265 Matter Stores 300 Matter Capacity 300 Sight Range 22 Terrain Scan Density 10 Corruption Block 12 Armor Coverage 375 Evasion (%) 65 Targeting Accuracy 6 Melee Accuracy 5 Armor Integrity Analysis 30 Recoil Reduction 4 Kinecelleration 40 Offensive Hacking 35 Defensive Hacking 22 Item Schematics ----------------- Seismic Detector | -9/Materials | Scanalyzed Combat Drone Bay | -6/Data Miner | Free Lgt. Regenerative Plating | -6/Data Miner | Free Exp. Heat Sink | -6/Data Miner | Free Cld. Gravmag System | -6/Data Miner | Free Hvy. Gatling Laser | -6/Data Miner | Free Centrium Wheel | -6/Data Miner | Free Adv. Target Analyzer | -6/Data Miner | Free Railgun | -6/Data Miner | Free Imp. Remote Force Field | -6/Data Miner | Free Adv. Remote Datajack | -6/Data Miner | Free Mic. Antimatter Reactor | -6/Data Miner | Free Adv. Energy Well | -3/Testing | Archive Adv. KE Penetrator | -3/Testing | Archive Robot Schematics ------------------ E-15 Imp | -6/Data Miner | Free H-66 Slayer | -6/Data Miner | Free S-27 Virus | -6/Data Miner | Free L-61 Swordsman | -6/Data Miner | Free B-48 Gladiator | -6/Data Miner | Free Y-64 Sentinel | -6/Data Miner | Free D-63 Destroyer | -3/Testing | Archive Fabricated ------------ Nothing Repaired ---------- Nothing Alien Tech Used ----------------- Transdimensional Reconstructor High-powered Transdimensional Reconstructor Achievements -------------- None Challenges ------------ None Game ------ Seed FactoryTripodLeg Manual? 0 Play Time 01:43:38 Cumulative 77.6 hours Start 2025.07.03 @ 20:09:50 End 2025.07.04 @ 13:18:09 Sessions 3 Manual Loads 0 Difficulty Rogue Special Mode None Game No. 138 Rogue 138 Adventurer 0 Explorer 0 Win Type - Total 1 Types 1/0/0/0/0/0/0/0/0/0 Lore% 57 Gallery% 47 Achievement% 41 Wizard Run 0 Options --------- Layout 0 ASCII 0 Keyboard 0 Movement Mouse Keybinds 0 Fullscreen 1 Font 16/SmallcapsGlow Map View 75x55 Zoom Use 0% Tactical HUD 1 Map Filters NONE Filters NONE Steam 1 RUN: 1d7a8a2d-aa75-4022-83c4-2911fe7af04f